Workbook

Sheet АА
E2: Договор1 | M2: а2
E5: Дата действия прайс-листа: с 01 ДЕКАБРЯ 2015 года
B7: № | C7: Линейка | D7: Цена базовая, руб | E7: Цена договора, руб | F7: Цена базовая НОВАЯ, руб | G7: Цена поставки НОВАЯ, руб | H7: Изменение цены поставки, %
C8: Скидка | E8: =VLOOKUP($E$2,Скидка!$A$2:$C$3,2,0) -> 0.26 | G8: =VLOOKUP($E$2,Скидка!$A$2:$C$3,3,0) -> 0.35
B9: 1 | C9: а1 | D9: =IFERROR(VLOOKUP($C9,База!$A$1:$F$15,2,0),"") -> 50 | E9: =IFERROR(VLOOKUP($C9,База!$A$1:$F$15,3,0),"") -> 35.5 | F9: =IFERROR(VLOOKUP($C9,База!$A$1:$F$15,4,0),"") -> 58 | G9: =IFERROR(VLOOKUP($C9,База!$A$1:$F$15,5,0),"") -> 38.86 | H9: =IFERROR(VLOOKUP($C9,База!$A$1:$F$15,2,0),"") -> 50
B10: 2 | C10: а2 | D10: =IFERROR(VLOOKUP($C10,База!$A$1:$F$15,2,0),"") -> 94 | E10: =IFERROR(VLOOKUP($C10,База!$A$1:$F$15,3,0),"") -> 66.74 | F10: =IFERROR(VLOOKUP($C10,База!$A$1:$F$15,4,0),"") -> 104 | G10: =IFERROR(VLOOKUP($C10,База!$A$1:$F$15,5,0),"") -> 69.68 | H10: =IFERROR(VLOOKUP($C10,База!$A$1:$F$15,2,0),"") -> 94
B11: 3 | C11: а3 | D11: =IFERROR(VLOOKUP($C11,База!$A$1:$F$15,2,0),"") -> 69 | E11: =IFERROR(VLOOKUP($C11,База!$A$1:$F$15,3,0),"") -> 48.99 | F11: =IFERROR(VLOOKUP($C11,База!$A$1:$F$15,4,0),"") -> 79 | G11: =IFERROR(VLOOKUP($C11,База!$A$1:$F$15,5,0),"") -> 52.93 | H11: =IFERROR(VLOOKUP($C11,База!$A$1:$F$15,2,0),"") -> 69
B12: 4 | C12: а4 | D12: =IFERROR(VLOOKUP($C12,База!$A$1:$F$15,2,0),"") -> 78 | E12: =IFERROR(VLOOKUP($C12,База!$A$1:$F$15,3,0),"") -> 55.38 | F12: =IFERROR(VLOOKUP($C12,База!$A$1:$F$15,4,0),"") -> 91 | G12: =IFERROR(VLOOKUP($C12,База!$A$1:$F$15,5,0),"") -> 60.97 | H12: =IFERROR(VLOOKUP($C12,База!$A$1:$F$15,2,0),"") -> 78
B13: 5 | C13: а5 | D13: =IFERROR(VLOOKUP($C13,База!$A$1:$F$15,2,0),"") -> 78 | E13: =IFERROR(VLOOKUP($C13,База!$A$1:$F$15,3,0),"") -> 55.38 | F13: =IFERROR(VLOOKUP($C13,База!$A$1:$F$15,4,0),"") -> 91 | G13: =IFERROR(VLOOKUP($C13,База!$A$1:$F$15,5,0),"") -> 60.97 | H13: =IFERROR(VLOOKUP($C13,База!$A$1:$F$15,2,0),"") -> 78
B14: 6 | C14: а6 | D14: =IFERROR(VLOOKUP($C14,База!$A$1:$F$15,2,0),"") -> 97 | E14: =IFERROR(VLOOKUP($C14,База!$A$1:$F$15,3,0),"") -> 68.87 | F14: =IFERROR(VLOOKUP($C14,База!$A$1:$F$15,4,0),"") -> 113 | G14: =IFERROR(VLOOKUP($C14,База!$A$1:$F$15,5,0),"") -> 75.71 | H14: =IFERROR(VLOOKUP($C14,База!$A$1:$F$15,2,0),"") -> 97
B15: 7 | C15: а7 | D15: =IFERROR(VLOOKUP($C15,База!$A$1:$F$15,2,0),"") -> 97 | E15: =IFERROR(VLOOKUP($C15,База!$A$1:$F$15,3,0),"") -> 68.87 | F15: =IFERROR(VLOOKUP($C15,База!$A$1:$F$15,4,0),"") -> 113 | G15: =IFERROR(VLOOKUP($C15,База!$A$1:$F$15,5,0),"") -> 75.71 | H15: =IFERROR(VLOOKUP($C15,База!$A$1:$F$15,2,0),"") -> 97
B16: 8 | C16: а8 | D16: =IFERROR(VLOOKUP($C16,База!$A$1:$F$15,2,0),"") -> 97 | E16: =IFERROR(VLOOKUP($C16,База!$A$1:$F$15,3,0),"") -> 68.87 | F16: =IFERROR(VLOOKUP($C16,База!$A$1:$F$15,4,0),"") -> 113 | G16: =IFERROR(VLOOKUP($C16,База!$A$1:$F$15,5,0),"") -> 75.71 | H16: =IFERROR(VLOOKUP($C16,База!$A$1:$F$15,2,0),"") -> 97
B17: 9 | C17: а9 | D17: =IFERROR(VLOOKUP($C17,База!$A$1:$F$15,2,0),"") -> 97 | E17: =IFERROR(VLOOKUP($C17,База!$A$1:$F$15,3,0),"") -> 68.87 | F17: =IFERROR(VLOOKUP($C17,База!$A$1:$F$15,4,0),"") -> 113 | G17: =IFERROR(VLOOKUP($C17,База!$A$1:$F$15,5,0),"") -> 75.71 | H17: =IFERROR(VLOOKUP($C17,База!$A$1:$F$15,2,0),"") -> 97
B18: 10 | C18: а10 | D18: =IFERROR(VLOOKUP($C18,База!$A$1:$F$15,2,0),"") -> 79 | E18: =IFERROR(VLOOKUP($C18,База!$A$1:$F$15,3,0),"") -> 56.09 | F18: =IFERROR(VLOOKUP($C18,База!$A$1:$F$15,4,0),"") -> 92 | G18: =IFERROR(VLOOKUP($C18,База!$A$1:$F$15,5,0),"") -> 61.64 | H18: =IFERROR(VLOOKUP($C18,База!$A$1:$F$15,2,0),"") -> 79
B19: 11 | C19: а11 | D19: =IFERROR(VLOOKUP($C19,База!$A$1:$F$15,2,0),"") -> 78 | E19: =IFERROR(VLOOKUP($C19,База!$A$1:$F$15,3,0),"") -> 55.38 | F19: =IFERROR(VLOOKUP($C19,База!$A$1:$F$15,4,0),"") -> 91 | G19: =IFERROR(VLOOKUP($C19,База!$A$1:$F$15,5,0),"") -> 60.97 | H19: =IFERROR(VLOOKUP($C19,База!$A$1:$F$15,2,0),"") -> 78
B20: 12 | C20: а12 | D20: =IFERROR(VLOOKUP($C20,База!$A$1:$F$15,2,0),"") -> 100 | E20: =IFERROR(VLOOKUP($C20,База!$A$1:$F$15,3,0),"") -> 71 | F20: =IFERROR(VLOOKUP($C20,База!$A$1:$F$15,4,0),"") -> 117 | G20: =IFERROR(VLOOKUP($C20,База!$A$1:$F$15,5,0),"") -> 78.39 | H20: =IFERROR(VLOOKUP($C20,База!$A$1:$F$15,2,0),"") -> 100
B21: 13 | C21: а13 | D21: =IFERROR(VLOOKUP($C21,База!$A$1:$F$15,2,0),"") -> 101 | E21: =IFERROR(VLOOKUP($C21,База!$A$1:$F$15,3,0),"") -> 71.71 | F21: =IFERROR(VLOOKUP($C21,База!$A$1:$F$15,4,0),"") -> 118 | G21: =IFERROR(VLOOKUP($C21,База!$A$1:$F$15,5,0),"") -> 79.06 | H21: =IFERROR(VLOOKUP($C21,База!$A$1:$F$15,2,0),"") -> 101
B22: 14 | C22: а14 | D22: =IFERROR(VLOOKUP($C22,База!$A$1:$F$15,2,0),"") -> 100 | E22: =IFERROR(VLOOKUP($C22,База!$A$1:$F$15,3,0),"") -> 71 | F22: =IFERROR(VLOOKUP($C22,База!$A$1:$F$15,4,0),"") -> 116 | G22: =IFERROR(VLOOKUP($C22,База!$A$1:$F$15,5,0),"") -> 77.72 | H22: =IFERROR(VLOOKUP($C22,База!$A$1:$F$15,2,0),"") -> 100
D23: =IFERROR(VLOOKUP($C23,База!$A$1:$F$15,2,0),"") ->  | E23: =IFERROR(VLOOKUP($C23,База!$A$1:$F$15,3,0),"") ->  | F23: =IFERROR(VLOOKUP($C23,База!$A$1:$F$15,4,0),"") ->  | G23: =IFERROR(VLOOKUP($C23,База!$A$1:$F$15,5,0),"") ->  | H23: =IFERROR(VLOOKUP($C23,База!$A$1:$F$15,2,0),"") -> 
D24: =IFERROR(VLOOKUP($C24,База!$A$1:$F$15,2,0),"") ->  | E24: =IFERROR(VLOOKUP($C24,База!$A$1:$F$15,3,0),"") ->  | F24: =IFERROR(VLOOKUP($C24,База!$A$1:$F$15,4,0),"") ->  | G24: =IFERROR(VLOOKUP($C24,База!$A$1:$F$15,5,0),"") ->  | H24: =IFERROR(VLOOKUP($C24,База!$A$1:$F$15,2,0),"") -> 
D25: =IFERROR(VLOOKUP($C25,База!$A$1:$F$15,2,0),"") ->  | E25: =IFERROR(VLOOKUP($C25,База!$A$1:$F$15,3,0),"") ->  | F25: =IFERROR(VLOOKUP($C25,База!$A$1:$F$15,4,0),"") ->  | G25: =IFERROR(VLOOKUP($C25,База!$A$1:$F$15,5,0),"") ->  | H25: =IFERROR(VLOOKUP($C25,База!$A$1:$F$15,2,0),"") -> 
D26: =IFERROR(VLOOKUP($C26,База!$A$1:$F$15,2,0),"") ->  | E26: =IFERROR(VLOOKUP($C26,База!$A$1:$F$15,3,0),"") ->  | F26: =IFERROR(VLOOKUP($C26,База!$A$1:$F$15,4,0),"") ->  | G26: =IFERROR(VLOOKUP($C26,База!$A$1:$F$15,5,0),"") ->  | H26: =IFERROR(VLOOKUP($C26,База!$A$1:$F$15,2,0),"") -> 
D27: =IFERROR(VLOOKUP($C27,База!$A$1:$F$15,2,0),"") ->  | E27: =IFERROR(VLOOKUP($C27,База!$A$1:$F$15,3,0),"") ->  | F27: =IFERROR(VLOOKUP($C27,База!$A$1:$F$15,4,0),"") ->  | G27: =IFERROR(VLOOKUP($C27,База!$A$1:$F$15,5,0),"") ->  | H27: =IFERROR(VLOOKUP($C27,База!$A$1:$F$15,2,0),"") -> 
D28: =IFERROR(VLOOKUP($C28,База!$A$1:$F$15,2,0),"") ->  | E28: =IFERROR(VLOOKUP($C28,База!$A$1:$F$15,3,0),"") ->  | F28: =IFERROR(VLOOKUP($C28,База!$A$1:$F$15,4,0),"") ->  | G28: =IFERROR(VLOOKUP($C28,База!$A$1:$F$15,5,0),"") ->  | H28: =IFERROR(VLOOKUP($C28,База!$A$1:$F$15,2,0),"") -> 
D29: =IFERROR(VLOOKUP($C29,База!$A$1:$F$15,2,0),"") ->  | E29: =IFERROR(VLOOKUP($C29,База!$A$1:$F$15,3,0),"") ->  | F29: =IFERROR(VLOOKUP($C29,База!$A$1:$F$15,4,0),"") ->  | G29: =IFERROR(VLOOKUP($C29,База!$A$1:$F$15,5,0),"") ->  | H29: =IFERROR(VLOOKUP($C29,База!$A$1:$F$15,2,0),"") -> 
D30: =IFERROR(VLOOKUP($C30,База!$A$1:$F$15,2,0),"") ->  | E30: =IFERROR(VLOOKUP($C30,База!$A$1:$F$15,3,0),"") ->  | F30: =IFERROR(VLOOKUP($C30,База!$A$1:$F$15,4,0),"") ->  | G30: =IFERROR(VLOOKUP($C30,База!$A$1:$F$15,5,0),"") ->  | H30: =IFERROR(VLOOKUP($C30,База!$A$1:$F$15,2,0),"") -> 
D31: =IFERROR(VLOOKUP($C31,База!$A$1:$F$15,2,0),"") ->  | E31: =IFERROR(VLOOKUP($C31,База!$A$1:$F$15,3,0),"") ->  | F31: =IFERROR(VLOOKUP($C31,База!$A$1:$F$15,4,0),"") ->  | G31: =IFERROR(VLOOKUP($C31,База!$A$1:$F$15,5,0),"") ->  | H31: =IFERROR(VLOOKUP($C31,База!$A$1:$F$15,2,0),"") -> 
D32: =IFERROR(VLOOKUP($C32,База!$A$1:$F$15,2,0),"") ->  | E32: =IFERROR(VLOOKUP($C32,База!$A$1:$F$15,3,0),"") ->  | F32: =IFERROR(VLOOKUP($C32,База!$A$1:$F$15,4,0),"") ->  | G32: =IFERROR(VLOOKUP($C32,База!$A$1:$F$15,5,0),"") ->  | H32: =IFERROR(VLOOKUP($C32,База!$A$1:$F$15,2,0),"") -> 
D33: =IFERROR(VLOOKUP($C33,База!$A$1:$F$15,2,0),"") ->  | E33: =IFERROR(VLOOKUP($C33,База!$A$1:$F$15,3,0),"") ->  | F33: =IFERROR(VLOOKUP($C33,База!$A$1:$F$15,4,0),"") ->  | G33: =IFERROR(VLOOKUP($C33,База!$A$1:$F$15,5,0),"") ->  | H33: =IFERROR(VLOOKUP($C33,База!$A$1:$F$15,2,0),"") -> 
D34: =IFERROR(VLOOKUP($C34,База!$A$1:$F$15,2,0),"") ->  | E34: =IFERROR(VLOOKUP($C34,База!$A$1:$F$15,3,0),"") ->  | F34: =IFERROR(VLOOKUP($C34,База!$A$1:$F$15,4,0),"") ->  | G34: =IFERROR(VLOOKUP($C34,База!$A$1:$F$15,5,0),"") ->  | H34: =IFERROR(VLOOKUP($C34,База!$A$1:$F$15,2,0),"") -> 
D35: =IFERROR(VLOOKUP($C35,База!$A$1:$F$15,2,0),"") ->  | E35: =IFERROR(VLOOKUP($C35,База!$A$1:$F$15,3,0),"") ->  | F35: =IFERROR(VLOOKUP($C35,База!$A$1:$F$15,4,0),"") ->  | G35: =IFERROR(VLOOKUP($C35,База!$A$1:$F$15,5,0),"") ->  | H35: =IFERROR(VLOOKUP($C35,База!$A$1:$F$15,2,0),"") -> 
D36: =IFERROR(VLOOKUP($C36,База!$A$1:$F$15,2,0),"") ->  | E36: =IFERROR(VLOOKUP($C36,База!$A$1:$F$15,3,0),"") ->  | F36: =IFERROR(VLOOKUP($C36,База!$A$1:$F$15,4,0),"") ->  | G36: =IFERROR(VLOOKUP($C36,База!$A$1:$F$15,5,0),"") ->  | H36: =IFERROR(VLOOKUP($C36,База!$A$1:$F$15,2,0),"") -> 
D37: =IFERROR(VLOOKUP($C37,База!$A$1:$F$15,2,0),"") ->  | E37: =IFERROR(VLOOKUP($C37,База!$A$1:$F$15,3,0),"") ->  | F37: =IFERROR(VLOOKUP($C37,База!$A$1:$F$15,4,0),"") ->  | G37: =IFERROR(VLOOKUP($C37,База!$A$1:$F$15,5,0),"") ->  | H37: =IFERROR(VLOOKUP($C37,База!$A$1:$F$15,2,0),"") -> 
D38: =IFERROR(VLOOKUP($C38,База!$A$1:$F$15,2,0),"") ->  | E38: =IFERROR(VLOOKUP($C38,База!$A$1:$F$15,3,0),"") ->  | F38: =IFERROR(VLOOKUP($C38,База!$A$1:$F$15,4,0),"") ->  | G38: =IFERROR(VLOOKUP($C38,База!$A$1:$F$15,5,0),"") ->  | H38: =IFERROR(VLOOKUP($C38,База!$A$1:$F$15,2,0),"") -> 
D39: =IFERROR(VLOOKUP($C39,База!$A$1:$F$15,2,0),"") ->  | E39: =IFERROR(VLOOKUP($C39,База!$A$1:$F$15,3,0),"") ->  | F39: =IFERROR(VLOOKUP($C39,База!$A$1:$F$15,4,0),"") ->  | G39: =IFERROR(VLOOKUP($C39,База!$A$1:$F$15,5,0),"") ->  | H39: =IFERROR(VLOOKUP($C39,База!$A$1:$F$15,2,0),"") -> 
D40: =IFERROR(VLOOKUP($C40,База!$A$1:$F$15,2,0),"") ->  | E40: =IFERROR(VLOOKUP($C40,База!$A$1:$F$15,3,0),"") ->  | F40: =IFERROR(VLOOKUP($C40,База!$A$1:$F$15,4,0),"") ->  | G40: =IFERROR(VLOOKUP($C40,База!$A$1:$F$15,5,0),"") ->  | H40: =IFERROR(VLOOKUP($C40,База!$A$1:$F$15,2,0),"") -> 
D41: =IFERROR(VLOOKUP($C41,База!$A$1:$F$15,2,0),"") ->  | E41: =IFERROR(VLOOKUP($C41,База!$A$1:$F$15,3,0),"") ->  | F41: =IFERROR(VLOOKUP($C41,База!$A$1:$F$15,4,0),"") ->  | G41: =IFERROR(VLOOKUP($C41,База!$A$1:$F$15,5,0),"") ->  | H41: =IFERROR(VLOOKUP($C41,База!$A$1:$F$15,2,0),"") -> 
D42: =IFERROR(VLOOKUP($C42,База!$A$1:$F$15,2,0),"") ->  | E42: =IFERROR(VLOOKUP($C42,База!$A$1:$F$15,3,0),"") ->  | F42: =IFERROR(VLOOKUP($C42,База!$A$1:$F$15,4,0),"") ->  | G42: =IFERROR(VLOOKUP($C42,База!$A$1:$F$15,5,0),"") ->  | H42: =IFERROR(VLOOKUP($C42,База!$A$1:$F$15,2,0),"") -> 
D43: =IFERROR(VLOOKUP($C43,База!$A$1:$F$15,2,0),"") ->  | E43: =IFERROR(VLOOKUP($C43,База!$A$1:$F$15,3,0),"") ->  | F43: =IFERROR(VLOOKUP($C43,База!$A$1:$F$15,4,0),"") ->  | G43: =IFERROR(VLOOKUP($C43,База!$A$1:$F$15,5,0),"") ->  | H43: =IFERROR(VLOOKUP($C43,База!$A$1:$F$15,2,0),"") -> 
D44: =IFERROR(VLOOKUP($C44,База!$A$1:$F$15,2,0),"") ->  | E44: =IFERROR(VLOOKUP($C44,База!$A$1:$F$15,3,0),"") ->  | F44: =IFERROR(VLOOKUP($C44,База!$A$1:$F$15,4,0),"") ->  | G44: =IFERROR(VLOOKUP($C44,База!$A$1:$F$15,5,0),"") ->  | H44: =IFERROR(VLOOKUP($C44,База!$A$1:$F$15,2,0),"") -> 
D45: =IFERROR(VLOOKUP($C45,База!$A$1:$F$15,2,0),"") ->  | E45: =IFERROR(VLOOKUP($C45,База!$A$1:$F$15,3,0),"") ->  | F45: =IFERROR(VLOOKUP($C45,База!$A$1:$F$15,4,0),"") ->  | G45: =IFERROR(VLOOKUP($C45,База!$A$1:$F$15,5,0),"") ->  | H45: =IFERROR(VLOOKUP($C45,База!$A$1:$F$15,2,0),"") -> 
D46: =IFERROR(VLOOKUP($C46,База!$A$1:$F$15,2,0),"") ->  | E46: =IFERROR(VLOOKUP($C46,База!$A$1:$F$15,3,0),"") ->  | F46: =IFERROR(VLOOKUP($C46,База!$A$1:$F$15,4,0),"") ->  | G46: =IFERROR(VLOOKUP($C46,База!$A$1:$F$15,5,0),"") ->  | H46: =IFERROR(VLOOKUP($C46,База!$A$1:$F$15,2,0),"") -> 
D47: =IFERROR(VLOOKUP($C47,База!$A$1:$F$15,2,0),"") ->  | E47: =IFERROR(VLOOKUP($C47,База!$A$1:$F$15,3,0),"") ->  | F47: =IFERROR(VLOOKUP($C47,База!$A$1:$F$15,4,0),"") ->  | G47: =IFERROR(VLOOKUP($C47,База!$A$1:$F$15,5,0),"") ->  | H47: =IFERROR(VLOOKUP($C47,База!$A$1:$F$15,2,0),"") -> 
D48: =IFERROR(VLOOKUP($C48,База!$A$1:$F$15,2,0),"") ->  | E48: =IFERROR(VLOOKUP($C48,База!$A$1:$F$15,3,0),"") ->  | F48: =IFERROR(VLOOKUP($C48,База!$A$1:$F$15,4,0),"") ->  | G48: =IFERROR(VLOOKUP($C48,База!$A$1:$F$15,5,0),"") ->  | H48: =IFERROR(VLOOKUP($C48,База!$A$1:$F$15,2,0),"") -> 
D49: =IFERROR(VLOOKUP($C49,База!$A$1:$F$15,2,0),"") ->  | E49: =IFERROR(VLOOKUP($C49,База!$A$1:$F$15,3,0),"") ->  | F49: =IFERROR(VLOOKUP($C49,База!$A$1:$F$15,4,0),"") ->  | G49: =IFERROR(VLOOKUP($C49,База!$A$1:$F$15,5,0),"") ->  | H49: =IFERROR(VLOOKUP($C49,База!$A$1:$F$15,2,0),"") -> 
D50: =IFERROR(VLOOKUP($C50,База!$A$1:$F$15,2,0),"") ->  | E50: =IFERROR(VLOOKUP($C50,База!$A$1:$F$15,3,0),"") ->  | F50: =IFERROR(VLOOKUP($C50,База!$A$1:$F$15,4,0),"") ->  | G50: =IFERROR(VLOOKUP($C50,База!$A$1:$F$15,5,0),"") ->  | H50: =IFERROR(VLOOKUP($C50,База!$A$1:$F$15,2,0),"") -> 
D51: =IFERROR(VLOOKUP($C51,База!$A$1:$F$15,2,0),"") ->  | E51: =IFERROR(VLOOKUP($C51,База!$A$1:$F$15,3,0),"") ->  | F51: =IFERROR(VLOOKUP($C51,База!$A$1:$F$15,4,0),"") ->  | G51: =IFERROR(VLOOKUP($C51,База!$A$1:$F$15,5,0),"") ->  | H51: =IFERROR(VLOOKUP($C51,База!$A$1:$F$15,2,0),"") -> 
D52: =IFERROR(VLOOKUP($C52,База!$A$1:$F$15,2,0),"") ->  | E52: =IFERROR(VLOOKUP($C52,База!$A$1:$F$15,3,0),"") ->  | F52: =IFERROR(VLOOKUP($C52,База!$A$1:$F$15,4,0),"") ->  | G52: =IFERROR(VLOOKUP($C52,База!$A$1:$F$15,5,0),"") ->  | H52: =IFERROR(VLOOKUP($C52,База!$A$1:$F$15,2,0),"") -> 
D53: =IFERROR(VLOOKUP($C53,База!$A$1:$F$15,2,0),"") ->  | E53: =IFERROR(VLOOKUP($C53,База!$A$1:$F$15,3,0),"") ->  | F53: =IFERROR(VLOOKUP($C53,База!$A$1:$F$15,4,0),"") ->  | G53: =IFERROR(VLOOKUP($C53,База!$A$1:$F$15,5,0),"") ->  | H53: =IFERROR(VLOOKUP($C53,База!$A$1:$F$15,2,0),"") -> 
D54: =IFERROR(VLOOKUP($C54,База!$A$1:$F$15,2,0),"") ->  | E54: =IFERROR(VLOOKUP($C54,База!$A$1:$F$15,3,0),"") ->  | F54: =IFERROR(VLOOKUP($C54,База!$A$1:$F$15,4,0),"") ->  | G54: =IFERROR(VLOOKUP($C54,База!$A$1:$F$15,5,0),"") ->  | H54: =IFERROR(VLOOKUP($C54,База!$A$1:$F$15,2,0),"") -> 
D55: =IFERROR(VLOOKUP($C55,База!$A$1:$F$15,2,0),"") ->  | E55: =IFERROR(VLOOKUP($C55,База!$A$1:$F$15,3,0),"") ->  | F55: =IFERROR(VLOOKUP($C55,База!$A$1:$F$15,4,0),"") ->  | G55: =IFERROR(VLOOKUP($C55,База!$A$1:$F$15,5,0),"") ->  | H55: =IFERROR(VLOOKUP($C55,База!$A$1:$F$15,2,0),"") -> 
D56: =IFERROR(VLOOKUP($C56,База!$A$1:$F$15,2,0),"") ->  | E56: =IFERROR(VLOOKUP($C56,База!$A$1:$F$15,3,0),"") ->  | F56: =IFERROR(VLOOKUP($C56,База!$A$1:$F$15,4,0),"") ->  | G56: =IFERROR(VLOOKUP($C56,База!$A$1:$F$15,5,0),"") ->  | H56: =IFERROR(VLOOKUP($C56,База!$A$1:$F$15,2,0),"") -> 
D57: =IFERROR(VLOOKUP($C57,База!$A$1:$F$15,2,0),"") ->  | E57: =IFERROR(VLOOKUP($C57,База!$A$1:$F$15,3,0),"") ->  | F57: =IFERROR(VLOOKUP($C57,База!$A$1:$F$15,4,0),"") ->  | G57: =IFERROR(VLOOKUP($C57,База!$A$1:$F$15,5,0),"") ->  | H57: =IFERROR(VLOOKUP($C57,База!$A$1:$F$15,2,0),"") -> 
D58: =IFERROR(VLOOKUP($C58,База!$A$1:$F$15,2,0),"") ->  | E58: =IFERROR(VLOOKUP($C58,База!$A$1:$F$15,3,0),"") ->  | F58: =IFERROR(VLOOKUP($C58,База!$A$1:$F$15,4,0),"") ->  | G58: =IFERROR(VLOOKUP($C58,База!$A$1:$F$15,5,0),"") ->  | H58: =IFERROR(VLOOKUP($C58,База!$A$1:$F$15,2,0),"") -> 
D59: =IFERROR(VLOOKUP($C59,База!$A$1:$F$15,2,0),"") ->  | E59: =IFERROR(VLOOKUP($C59,База!$A$1:$F$15,3,0),"") ->  | F59: =IFERROR(VLOOKUP($C59,База!$A$1:$F$15,4,0),"") ->  | G59: =IFERROR(VLOOKUP($C59,База!$A$1:$F$15,5,0),"") ->  | H59: =IFERROR(VLOOKUP($C59,База!$A$1:$F$15,2,0),"") -> 
D60: =IFERROR(VLOOKUP($C60,База!$A$1:$F$15,2,0),"") ->  | E60: =IFERROR(VLOOKUP($C60,База!$A$1:$F$15,3,0),"") ->  | F60: =IFERROR(VLOOKUP($C60,База!$A$1:$F$15,4,0),"") ->  | G60: =IFERROR(VLOOKUP($C60,База!$A$1:$F$15,5,0),"") ->  | H60: =IFERROR(VLOOKUP($C60,База!$A$1:$F$15,2,0),"") -> 
D61: =IFERROR(VLOOKUP($C61,База!$A$1:$F$15,2,0),"") ->  | E61: =IFERROR(VLOOKUP($C61,База!$A$1:$F$15,3,0),"") ->  | F61: =IFERROR(VLOOKUP($C61,База!$A$1:$F$15,4,0),"") ->  | G61: =IFERROR(VLOOKUP($C61,База!$A$1:$F$15,5,0),"") ->  | H61: =IFERROR(VLOOKUP($C61,База!$A$1:$F$15,2,0),"") -> 
D62: =IFERROR(VLOOKUP($C62,База!$A$1:$F$15,2,0),"") ->  | E62: =IFERROR(VLOOKUP($C62,База!$A$1:$F$15,3,0),"") ->  | F62: =IFERROR(VLOOKUP($C62,База!$A$1:$F$15,4,0),"") ->  | G62: =IFERROR(VLOOKUP($C62,База!$A$1:$F$15,5,0),"") ->  | H62: =IFERROR(VLOOKUP($C62,База!$A$1:$F$15,2,0),"") -> 
D63: =IFERROR(VLOOKUP($C63,База!$A$1:$F$15,2,0),"") ->  | E63: =IFERROR(VLOOKUP($C63,База!$A$1:$F$15,3,0),"") ->  | F63: =IFERROR(VLOOKUP($C63,База!$A$1:$F$15,4,0),"") ->  | G63: =IFERROR(VLOOKUP($C63,База!$A$1:$F$15,5,0),"") ->  | H63: =IFERROR(VLOOKUP($C63,База!$A$1:$F$15,2,0),"") -> 
D64: =IFERROR(VLOOKUP($C64,База!$A$1:$F$15,2,0),"") ->  | E64: =IFERROR(VLOOKUP($C64,База!$A$1:$F$15,3,0),"") ->  | F64: =IFERROR(VLOOKUP($C64,База!$A$1:$F$15,4,0),"") ->  | G64: =IFERROR(VLOOKUP($C64,База!$A$1:$F$15,5,0),"") ->  | H64: =IFERROR(VLOOKUP($C64,База!$A$1:$F$15,2,0),"") -> 
D65: =IFERROR(VLOOKUP($C65,База!$A$1:$F$15,2,0),"") ->  | E65: =IFERROR(VLOOKUP($C65,База!$A$1:$F$15,3,0),"") ->  | F65: =IFERROR(VLOOKUP($C65,База!$A$1:$F$15,4,0),"") ->  | G65: =IFERROR(VLOOKUP($C65,База!$A$1:$F$15,5,0),"") ->  | H65: =IFERROR(VLOOKUP($C65,База!$A$1:$F$15,2,0),"") -> 
D66: =IFERROR(VLOOKUP($C66,База!$A$1:$F$15,2,0),"") ->  | E66: =IFERROR(VLOOKUP($C66,База!$A$1:$F$15,3,0),"") ->  | F66: =IFERROR(VLOOKUP($C66,База!$A$1:$F$15,4,0),"") ->  | G66: =IFERROR(VLOOKUP($C66,База!$A$1:$F$15,5,0),"") ->  | H66: =IFERROR(VLOOKUP($C66,База!$A$1:$F$15,2,0),"") -> 
D67: =IFERROR(VLOOKUP($C67,База!$A$1:$F$15,2,0),"") ->  | E67: =IFERROR(VLOOKUP($C67,База!$A$1:$F$15,3,0),"") ->  | F67: =IFERROR(VLOOKUP($C67,База!$A$1:$F$15,4,0),"") ->  | G67: =IFERROR(VLOOKUP($C67,База!$A$1:$F$15,5,0),"") ->  | H67: =IFERROR(VLOOKUP($C67,База!$A$1:$F$15,2,0),"") -> 
D68: =IFERROR(VLOOKUP($C68,База!$A$1:$F$15,2,0),"") ->  | E68: =IFERROR(VLOOKUP($C68,База!$A$1:$F$15,3,0),"") ->  | F68: =IFERROR(VLOOKUP($C68,База!$A$1:$F$15,4,0),"") ->  | G68: =IFERROR(VLOOKUP($C68,База!$A$1:$F$15,5,0),"") ->  | H68: =IFERROR(VLOOKUP($C68,База!$A$1:$F$15,2,0),"") -> 
D69: =IFERROR(VLOOKUP($C69,База!$A$1:$F$15,2,0),"") ->  | E69: =IFERROR(VLOOKUP($C69,База!$A$1:$F$15,3,0),"") ->  | F69: =IFERROR(VLOOKUP($C69,База!$A$1:$F$15,4,0),"") ->  | G69: =IFERROR(VLOOKUP($C69,База!$A$1:$F$15,5,0),"") ->  | H69: =IFERROR(VLOOKUP($C69,База!$A$1:$F$15,2,0),"") -> 
D70: =IFERROR(VLOOKUP($C70,База!$A$1:$F$15,2,0),"") ->  | E70: =IFERROR(VLOOKUP($C70,База!$A$1:$F$15,3,0),"") ->  | F70: =IFERROR(VLOOKUP($C70,База!$A$1:$F$15,4,0),"") ->  | G70: =IFERROR(VLOOKUP($C70,База!$A$1:$F$15,5,0),"") ->  | H70: =IFERROR(VLOOKUP($C70,База!$A$1:$F$15,2,0),"") -> 
D71: =IFERROR(VLOOKUP($C71,База!$A$1:$F$15,2,0),"") ->  | E71: =IFERROR(VLOOKUP($C71,База!$A$1:$F$15,3,0),"") ->  | F71: =IFERROR(VLOOKUP($C71,База!$A$1:$F$15,4,0),"") ->  | G71: =IFERROR(VLOOKUP($C71,База!$A$1:$F$15,5,0),"") ->  | H71: =IFERROR(VLOOKUP($C71,База!$A$1:$F$15,2,0),"") -> 
D72: =IFERROR(VLOOKUP($C72,База!$A$1:$F$15,2,0),"") ->  | E72: =IFERROR(VLOOKUP($C72,База!$A$1:$F$15,3,0),"") ->  | F72: =IFERROR(VLOOKUP($C72,База!$A$1:$F$15,4,0),"") ->  | G72: =IFERROR(VLOOKUP($C72,База!$A$1:$F$15,5,0),"") ->  | H72: =IFERROR(VLOOKUP($C72,База!$A$1:$F$15,2,0),"") -> 
D73: =IFERROR(VLOOKUP($C73,База!$A$1:$F$15,2,0),"") ->  | E73: =IFERROR(VLOOKUP($C73,База!$A$1:$F$15,3,0),"") ->  | F73: =IFERROR(VLOOKUP($C73,База!$A$1:$F$15,4,0),"") ->  | G73: =IFERROR(VLOOKUP($C73,База!$A$1:$F$15,5,0),"") ->  | H73: =IFERROR(VLOOKUP($C73,База!$A$1:$F$15,2,0),"") -> 
D74: =IFERROR(VLOOKUP($C74,База!$A$1:$F$15,2,0),"") ->  | E74: =IFERROR(VLOOKUP($C74,База!$A$1:$F$15,3,0),"") ->  | F74: =IFERROR(VLOOKUP($C74,База!$A$1:$F$15,4,0),"") ->  | G74: =IFERROR(VLOOKUP($C74,База!$A$1:$F$15,5,0),"") ->  | H74: =IFERROR(VLOOKUP($C74,База!$A$1:$F$15,2,0),"") -> 
D75: =IFERROR(VLOOKUP($C75,База!$A$1:$F$15,2,0),"") ->  | E75: =IFERROR(VLOOKUP($C75,База!$A$1:$F$15,3,0),"") ->  | F75: =IFERROR(VLOOKUP($C75,База!$A$1:$F$15,4,0),"") ->  | G75: =IFERROR(VLOOKUP($C75,База!$A$1:$F$15,5,0),"") ->  | H75: =IFERROR(VLOOKUP($C75,База!$A$1:$F$15,2,0),"") -> 
D76: =IFERROR(VLOOKUP($C76,База!$A$1:$F$15,2,0),"") ->  | E76: =IFERROR(VLOOKUP($C76,База!$A$1:$F$15,3,0),"") ->  | F76: =IFERROR(VLOOKUP($C76,База!$A$1:$F$15,4,0),"") ->  | G76: =IFERROR(VLOOKUP($C76,База!$A$1:$F$15,5,0),"") ->  | H76: =IFERROR(VLOOKUP($C76,База!$A$1:$F$15,2,0),"") -> 
D77: =IFERROR(VLOOKUP($C77,База!$A$1:$F$15,2,0),"") ->  | E77: =IFERROR(VLOOKUP($C77,База!$A$1:$F$15,3,0),"") ->  | F77: =IFERROR(VLOOKUP($C77,База!$A$1:$F$15,4,0),"") ->  | G77: =IFERROR(VLOOKUP($C77,База!$A$1:$F$15,5,0),"") ->  | H77: =IFERROR(VLOOKUP($C77,База!$A$1:$F$15,2,0),"") -> 
D78: =IFERROR(VLOOKUP($C78,База!$A$1:$F$15,2,0),"") ->  | E78: =IFERROR(VLOOKUP($C78,База!$A$1:$F$15,3,0),"") ->  | F78: =IFERROR(VLOOKUP($C78,База!$A$1:$F$15,4,0),"") ->  | G78: =IFERROR(VLOOKUP($C78,База!$A$1:$F$15,5,0),"") ->  | H78: =IFERROR(VLOOKUP($C78,База!$A$1:$F$15,2,0),"") -> 
D79: =IFERROR(VLOOKUP($C79,База!$A$1:$F$15,2,0),"") ->  | E79: =IFERROR(VLOOKUP($C79,База!$A$1:$F$15,3,0),"") ->  | F79: =IFERROR(VLOOKUP($C79,База!$A$1:$F$15,4,0),"") ->  | G79: =IFERROR(VLOOKUP($C79,База!$A$1:$F$15,5,0),"") ->  | H79: =IFERROR(VLOOKUP($C79,База!$A$1:$F$15,2,0),"") -> 
D80: =IFERROR(VLOOKUP($C80,База!$A$1:$F$15,2,0),"") ->  | E80: =IFERROR(VLOOKUP($C80,База!$A$1:$F$15,3,0),"") ->  | F80: =IFERROR(VLOOKUP($C80,База!$A$1:$F$15,4,0),"") ->  | G80: =IFERROR(VLOOKUP($C80,База!$A$1:$F$15,5,0),"") ->  | H80: =IFERROR(VLOOKUP($C80,База!$A$1:$F$15,2,0),"") -> 
D81: =IFERROR(VLOOKUP($C81,База!$A$1:$F$15,2,0),"") ->  | E81: =IFERROR(VLOOKUP($C81,База!$A$1:$F$15,3,0),"") ->  | F81: =IFERROR(VLOOKUP($C81,База!$A$1:$F$15,4,0),"") ->  | G81: =IFERROR(VLOOKUP($C81,База!$A$1:$F$15,5,0),"") ->  | H81: =IFERROR(VLOOKUP($C81,База!$A$1:$F$15,2,0),"") -> 
D82: =IFERROR(VLOOKUP($C82,База!$A$1:$F$15,2,0),"") ->  | E82: =IFERROR(VLOOKUP($C82,База!$A$1:$F$15,3,0),"") ->  | F82: =IFERROR(VLOOKUP($C82,База!$A$1:$F$15,4,0),"") ->  | G82: =IFERROR(VLOOKUP($C82,База!$A$1:$F$15,5,0),"") ->  | H82: =IFERROR(VLOOKUP($C82,База!$A$1:$F$15,2,0),"") -> 
D83: =IFERROR(VLOOKUP($C83,База!$A$1:$F$15,2,0),"") ->  | E83: =IFERROR(VLOOKUP($C83,База!$A$1:$F$15,3,0),"") ->  | F83: =IFERROR(VLOOKUP($C83,База!$A$1:$F$15,4,0),"") ->  | G83: =IFERROR(VLOOKUP($C83,База!$A$1:$F$15,5,0),"") ->  | H83: =IFERROR(VLOOKUP($C83,База!$A$1:$F$15,2,0),"") -> 
D84: =IFERROR(VLOOKUP($C84,База!$A$1:$F$15,2,0),"") ->  | E84: =IFERROR(VLOOKUP($C84,База!$A$1:$F$15,3,0),"") ->  | F84: =IFERROR(VLOOKUP($C84,База!$A$1:$F$15,4,0),"") ->  | G84: =IFERROR(VLOOKUP($C84,База!$A$1:$F$15,5,0),"") ->  | H84: =IFERROR(VLOOKUP($C84,База!$A$1:$F$15,2,0),"") -> 
D85: =IFERROR(VLOOKUP($C85,База!$A$1:$F$15,2,0),"") ->  | E85: =IFERROR(VLOOKUP($C85,База!$A$1:$F$15,3,0),"") ->  | F85: =IFERROR(VLOOKUP($C85,База!$A$1:$F$15,4,0),"") ->  | G85: =IFERROR(VLOOKUP($C85,База!$A$1:$F$15,5,0),"") ->  | H85: =IFERROR(VLOOKUP($C85,База!$A$1:$F$15,2,0),"") -> 
D86: =IFERROR(VLOOKUP($C86,База!$A$1:$F$15,2,0),"") ->  | E86: =IFERROR(VLOOKUP($C86,База!$A$1:$F$15,3,0),"") ->  | F86: =IFERROR(VLOOKUP($C86,База!$A$1:$F$15,4,0),"") ->  | G86: =IFERROR(VLOOKUP($C86,База!$A$1:$F$15,5,0),"") ->  | H86: =IFERROR(VLOOKUP($C86,База!$A$1:$F$15,2,0),"") -> 
D87: =IFERROR(VLOOKUP($C87,База!$A$1:$F$15,2,0),"") ->  | E87: =IFERROR(VLOOKUP($C87,База!$A$1:$F$15,3,0),"") ->  | F87: =IFERROR(VLOOKUP($C87,База!$A$1:$F$15,4,0),"") ->  | G87: =IFERROR(VLOOKUP($C87,База!$A$1:$F$15,5,0),"") ->  | H87: =IFERROR(VLOOKUP($C87,База!$A$1:$F$15,2,0),"") -> 
D88: =IFERROR(VLOOKUP($C88,База!$A$1:$F$15,2,0),"") ->  | E88: =IFERROR(VLOOKUP($C88,База!$A$1:$F$15,3,0),"") ->  | F88: =IFERROR(VLOOKUP($C88,База!$A$1:$F$15,4,0),"") ->  | G88: =IFERROR(VLOOKUP($C88,База!$A$1:$F$15,5,0),"") ->  | H88: =IFERROR(VLOOKUP($C88,База!$A$1:$F$15,2,0),"") -> 
D89: =IFERROR(VLOOKUP($C89,База!$A$1:$F$15,2,0),"") ->  | E89: =IFERROR(VLOOKUP($C89,База!$A$1:$F$15,3,0),"") ->  | F89: =IFERROR(VLOOKUP($C89,База!$A$1:$F$15,4,0),"") ->  | G89: =IFERROR(VLOOKUP($C89,База!$A$1:$F$15,5,0),"") ->  | H89: =IFERROR(VLOOKUP($C89,База!$A$1:$F$15,2,0),"") -> 
D90: =IFERROR(VLOOKUP($C90,База!$A$1:$F$15,2,0),"") ->  | E90: =IFERROR(VLOOKUP($C90,База!$A$1:$F$15,3,0),"") ->  | F90: =IFERROR(VLOOKUP($C90,База!$A$1:$F$15,4,0),"") ->  | G90: =IFERROR(VLOOKUP($C90,База!$A$1:$F$15,5,0),"") ->  | H90: =IFERROR(VLOOKUP($C90,База!$A$1:$F$15,2,0),"") -> 
D91: =IFERROR(VLOOKUP($C91,База!$A$1:$F$15,2,0),"") ->  | E91: =IFERROR(VLOOKUP($C91,База!$A$1:$F$15,3,0),"") ->  | F91: =IFERROR(VLOOKUP($C91,База!$A$1:$F$15,4,0),"") ->  | G91: =IFERROR(VLOOKUP($C91,База!$A$1:$F$15,5,0),"") ->  | H91: =IFERROR(VLOOKUP($C91,База!$A$1:$F$15,2,0),"") -> 
D92: =IFERROR(VLOOKUP($C92,База!$A$1:$F$15,2,0),"") ->  | E92: =IFERROR(VLOOKUP($C92,База!$A$1:$F$15,3,0),"") ->  | F92: =IFERROR(VLOOKUP($C92,База!$A$1:$F$15,4,0),"") ->  | G92: =IFERROR(VLOOKUP($C92,База!$A$1:$F$15,5,0),"") ->  | H92: =IFERROR(VLOOKUP($C92,База!$A$1:$F$15,2,0),"") -> 
D93: =IFERROR(VLOOKUP($C93,База!$A$1:$F$15,2,0),"") ->  | E93: =IFERROR(VLOOKUP($C93,База!$A$1:$F$15,3,0),"") ->  | F93: =IFERROR(VLOOKUP($C93,База!$A$1:$F$15,4,0),"") ->  | G93: =IFERROR(VLOOKUP($C93,База!$A$1:$F$15,5,0),"") ->  | H93: =IFERROR(VLOOKUP($C93,База!$A$1:$F$15,2,0),"") -> 
D94: =IFERROR(VLOOKUP($C94,База!$A$1:$F$15,2,0),"") ->  | E94: =IFERROR(VLOOKUP($C94,База!$A$1:$F$15,3,0),"") ->  | F94: =IFERROR(VLOOKUP($C94,База!$A$1:$F$15,4,0),"") ->  | G94: =IFERROR(VLOOKUP($C94,База!$A$1:$F$15,5,0),"") ->  | H94: =IFERROR(VLOOKUP($C94,База!$A$1:$F$15,2,0),"") -> 
D95: =IFERROR(VLOOKUP($C95,База!$A$1:$F$15,2,0),"") ->  | E95: =IFERROR(VLOOKUP($C95,База!$A$1:$F$15,3,0),"") ->  | F95: =IFERROR(VLOOKUP($C95,База!$A$1:$F$15,4,0),"") ->  | G95: =IFERROR(VLOOKUP($C95,База!$A$1:$F$15,5,0),"") ->  | H95: =IFERROR(VLOOKUP($C95,База!$A$1:$F$15,2,0),"") -> 

Sheet ББ
E2: Договор2
E5: Дата действия прайс-листа: с 01 ДЕКАБРЯ 2015 года
B7: № | C7: Линейка | D7: Цена базовая, руб | E7: Цена договора, руб | F7: Цена базовая НОВАЯ, руб | G7: Цена поставки НОВАЯ, руб | H7: Изменение цены поставки, %
C8: Скидка | E8: 0.29 | G8: 0.33
B9: 1 | C9: а1 | D9: 50 | E9: 35.5 | F9: 58 | G9: 38.86 | H9: 0.09464788732
B10: 2 | C10: а2 | D10: 94 | E10: 66.74 | F10: 104 | G10: 69.68 | H10: 0.0440515433
B11: 3 | C11: а3 | D11: 69 | E11: 48.99 | F11: 79 | G11: 52.93 | H11: 0.08042457644
B12: 4 | C12: а4 | D12: 78 | E12: 55.38 | F12: 91 | G12: 60.97 | H12: 0.1009389671
B13: 5 | C13: а5 | D13: 78 | E13: 55.38 | F13: 91 | G13: 60.97 | H13: 0.1009389671
B14: 6 | C14: а6 | D14: 97 | E14: 68.87 | F14: 113 | G14: 75.71 | H14: 0.09931755481
B15: 7 | C15: а7 | D15: 97 | E15: 68.87 | F15: 113 | G15: 75.71 | H15: 0.09931755481
B16: 8 | C16: а8 | D16: 97 | E16: 68.87 | F16: 113 | G16: 75.71 | H16: 0.09931755481
B17: 9 | C17: а9 | D17: 97 | E17: 68.87 | F17: 113 | G17: 75.71 | H17: 0.09931755481
B18: 10 | C18: а10 | D18: 79 | E18: 56.09 | F18: 92 | G18: 61.64 | H18: 0.09894811909
B19: 11 | C19: а11 | D19: 78 | E19: 55.38 | F19: 91 | G19: 60.97 | H19: 0.1009389671

Sheet База
A1: Линейка | B1: Цена базовая, руб | C1: Цена договора, руб | D1: Цена базовая НОВАЯ, руб | E1: Цена поставки НОВАЯ, руб | F1: Изменение цены поставки, %
A2: а1 | B2: 50 | C2: 35.5 | D2: 58 | E2: 38.86 | F2: 0.09464788732
A3: а2 | B3: 94 | C3: 66.74 | D3: 104 | E3: 69.68 | F3: 0.0440515433
A4: а3 | B4: 69 | C4: 48.99 | D4: 79 | E4: 52.93 | F4: 0.08042457644
A5: а4 | B5: 78 | C5: 55.38 | D5: 91 | E5: 60.97 | F5: 0.1009389671
A6: а5 | B6: 78 | C6: 55.38 | D6: 91 | E6: 60.97 | F6: 0.1009389671
A7: а6 | B7: 97 | C7: 68.87 | D7: 113 | E7: 75.71 | F7: 0.09931755481
A8: а7 | B8: 97 | C8: 68.87 | D8: 113 | E8: 75.71 | F8: 0.09931755481
A9: а8 | B9: 97 | C9: 68.87 | D9: 113 | E9: 75.71 | F9: 0.09931755481
A10: а9 | B10: 97 | C10: 68.87 | D10: 113 | E10: 75.71 | F10: 0.09931755481
A11: а10 | B11: 79 | C11: 56.09 | D11: 92 | E11: 61.64 | F11: 0.09894811909
A12: а11 | B12: 78 | C12: 55.38 | D12: 91 | E12: 60.97 | F12: 0.1009389671
A13: а12 | B13: 100 | C13: 71 | D13: 117 | E13: 78.39 | F13: 0.104084507
A14: а13 | B14: 101 | C14: 71.71 | D14: 118 | E14: 79.06 | F14: 0.1024961651
A15: а14 | B15: 100 | C15: 71 | D15: 116 | E15: 77.72 | F15: 0.09464788732

Sheet Скидка
A2: Договор1 | B2: 0.26 | C2: 0.35
A3: Договор2 | B3: 0.23 | C3: 0.48
